bitfinex-derivatives/quotes_ETHF0:USTF0_20250220
["timestamp","ask_amount","ask_price","bid_price","bid_amount"]
[1740077051102,0.72987,2739.6,2739.5,2.45239]
[1740077052997,0.72987,2739.6,2739.5,1.7225]
[1740077053603,0.72989,2739.5,2739.4,0.00547915]
[1740077068606,3.14589,2739.5,2739.4,9.15e-06]
[1740077068806,0.73011,2738.7,2738.6,3.2078]
[1740077069308,0.73021,2738.3,2738.2,3.2078]
[1740077072807,0.73021,2738.3,2738.2,3.93803]
[1740077073010,0.73021,2738.3,2738.2,3.2078]
[1740077075615,0.73021,2738.3,2738.2,3.93804]
[1740077075818,0.73021,2738.3,2738.2,3.2078]
[1740077078612,0.73021,2738.4,2738.3,0.7302]
[1740077078809,0.73021,2738.4,2738.3,1.277]
[1740077079012,0.00547915,2738.5,2738.4,0.73019]
[1740077079210,0.00547915,2738.5,2738.4,1.28369]
[1740077079612,3.7747,2739.0,2738.4,1.28369]
[1740077079613,5.6238,2739.3,2738.4,0.5535]
[1740077079912,1.82484,2739.4,2738.9,3.2078]
[1740077079913,1.1556,2739.4,2738.9,3.2078]
[1740077080115,3.2078,2739.7,2739.0,2.93055]
[1740077080311,3.2078,2739.7,2739.3,0.72992]
[1740077080511,3.2078,2739.7,2739.1,41.3763]
[1740077080712,3.21327915,2739.7,2739.1,41.3763]
[1740077081012,1.82468,2739.6,2739.1,42.10629]
[1740077081319,0.72997,2739.2,2739.1,42.10629]
[1740077081819,0.72996,2739.3,2739.1,42.10629]
[1740077082514,3.21327915,2739.7,2739.2,3.2078]
[1740077082720,3.21327915,2739.7,2739.3,2.416]
[1740077083119,3.94311915,2739.7,2739.5,0.72989]
[1740077083315,3.21327915,2739.7,2739.6,0.72987]
[1740077083508,0.00547915,2739.7,2739.6,0.72987]
[1740077083722,3.7569,2740.3,2739.9,0.72979]
[1740077083723,3.2078,2740.3,2739.9,0.72979]
[1740077083923,0.72973,2740.1,2740.0,0.546]
[1740077084528,0.5874,2740.4,2740.0,0.546]
[1740077084529,0.72973,2740.2,2740.0,0.546]
[1740077084929,0.59287915,2740.4,2740.0,0.546]
[1740077085123,0.72973,2740.2,2740.0,0.546]
[1740077085630,0.59287915,2740.4,2740.0,0.546]
[1740077085831,0.72972,2740.2,2740.0,0.546]
[1740077086628,0.72973,2740.2,2740.0,0.546]
[1740077087627,0.59287915,2740.4,2740.0,0.546]
[1740077087826,0.72973,2740.2,2740.0,0.546]
[1740077088525,0.7297,2740.3,2740.1,0.72973]
[1740077088918,0.59287915,2740.4,2740.0,0.546]
[1740077089327,0.00547915,2740.4,2740.0,0.546]
[1740077089527,0.00547915,2740.4,2740.3,0.72968]
[1740077089929,0.00547915,2740.4,2740.3,3.14468]
[1740077090324,0.00547915,2740.4,2740.3,6.35248]
[1740077093332,0.00547915,2740.4,2740.3,47.15248]
[1740077095735,9.15e-06,2740.4,2740.3,53.15248]
[1740077101639,9.15e-06,2740.4,2740.3,47.15148]
[1740077102635,9.15e-06,2740.4,2740.3,53.15148]
[1740077104337,9.15e-06,2740.4,2740.3,47.15148]
[1740077105145,0.5613,2741.1,2741.0,0.7295]
[1740077105341,0.5613,2741.1,2741.0,3.1435]
[1740077107645,1.29077,2741.1,2741.0,3.1435]
[1740077107837,0.5613,2741.1,2741.0,3.1435]
[1740077108945,0.5613,2741.1,2741.0,43.9435]
[1740077109740,0.55427915,2741.3,2741.0,43.9435]
[1740077109940,0.55427915,2741.3,2741.2,3.93724]
[1740077111047,0.55427915,2741.3,2741.2,6.35124]
[1740077111744,0.55427915,2741.3,2741.2,3.93724]
[1740077111950,1.28369915,2741.3,2741.2,3.14244]
[1740077113049,0.55427915,2741.3,2741.2,3.14244]
[1740077113247,0.55427915,2741.3,2741.0,40.8]
[1740077113547,0.72946,2741.2,2741.0,3.14248]
[1740077113753,0.55427915,2741.3,2741.0,3.14248]
[1740077113937,0.72946,2741.2,2741.0,43.213]
[1740077114140,0.72946,2741.2,2741.1,0.72947]
[1740077117554,0.72946,2741.2,2741.0,43.213]
[1740077117848,0.72946,2741.2,2741.1,0.72947]
[1740077118947,0.55427915,2741.3,2741.0,2.413]
[1740077119452,0.72945,2741.2,2741.1,0.72947]
[1740077120952,0.55427915,2741.3,2741.0,2.413]
[1740077121152,1.28371915,2741.3,2741.2,0.72944]
[1740077121452,0.55427915,2741.3,2741.0,2.413]
[1740077121643,1.28369915,2741.3,2741.2,0.72944]
[1740077121848,0.00547915,2741.3,2741.2,3.93724]
[1740077122057,0.5418,2741.7,2741.6,0.72934]
[1740077122348,1.1507,2741.9,2741.6,0.72934]
[1740077122349,0.5765,2741.9,2741.8,0.72928]
[1740077122553,1.1183,2741.9,2741.8,0.72928]
[1740077122751,1.1183,2741.9,2741.6,2.413]
[1740077122951,0.5742,2741.8,2741.6,2.413]
[1740077123152,0.72931,2741.7,2741.6,2.413]
[1740077123351,1.30351,2741.8,2741.6,3.14233]
[1740077123948,0.72931,2741.7,2741.6,3.14233]
[1740077124153,0.5742,2741.8,2741.6,3.14233]
[1740077124353,0.5742,2741.8,2741.5,3.2078]
[1740077124554,0.72934,2741.6,2741.5,3.2078]
[1740077124748,0.5742,2741.8,2741.5,3.2078]
[1740077124953,0.72932,2741.7,2741.5,3.93715]
[1740077125149,0.72932,2741.7,2741.5,3.2078]
[1740077125655,0.72932,2741.7,2741.5,3.93714]
[1740077125862,1.30348,2741.8,2741.6,0.72934]
[1740077126955,1.1183,2741.9,2741.5,3.2078]
[1740077127258,1.1183,2741.9,2741.8,0.72928]
[1740077130364,0.00359474,2742.0,2741.6,1.7548]
[1740077130661,0.00359474,2742.0,2741.9,0.72926]
[1740077133263,0.73282474,2742.0,2741.9,0.72926]
[1740077133464,0.00359474,2742.0,2741.9,0.72926]
[1740077133665,0.00359474,2742.0,2741.9,3.14126]
[1740077133966,0.73282474,2742.0,2741.9,2.412]
[1740077135061,0.73282474,2742.0,2741.9,3.14126]
[1740077135658,0.73282474,2742.0,2741.9,2.412]
[1740077136063,0.73282474,2742.0,2741.9,3.14126]
[1740077136366,0.73282474,2742.0,2741.9,2.412]
[1740077137362,0.00359474,2742.0,2741.8,3.93706]
[1740077137670,0.00359474,2742.0,2741.9,0.72926]
[1740077137966,0.72926,2741.9,2741.8,3.93707]
[1740077138265,0.73283474,2742.0,2741.9,0.72926]
[1740077138467,0.00359474,2742.0,2741.9,0.72926]
[1740077138861,0.72917,2742.3,2741.8,5.03097]
[1740077139061,0.72915,2742.3,2741.9,1.82315]
[1740077139263,0.72919,2742.2,2742.1,0.72919]
[1740077139471,0.72919,2742.2,2742.1,41.52919]
[1740077140368,0.5615,2742.4,2742.1,2.412]
[1740077140874,0.5615,2742.4,2742.3,0.72915]
[1740077141368,3.764,2742.6,2742.2,1.662]
[1740077141369,0.5562,2742.6,2742.5,0.7291]
[1740077141570,1.28527,2742.6,2742.5,0.7291]
[1740077142067,0.5515,2742.8,2742.7,0.72904]
[1740077142581,0.5854,2743.1,2742.5,2.412]
[1740077142767,1.31436,2743.1,2742.5,2.412]
[1740077143063,0.5854,2743.1,2742.9,0.72898]
[1740077143264,0.5854,2743.1,2742.7,3.2078]
[1740077143464,0.5854,2743.1,2742.9,0.72898]
[1740077143671,0.5854,2743.1,2742.8,2.36739]
[1740077143873,0.72897,2743.0,2742.8,2.36739]
[1740077144070,0.72897,2743.0,2742.8,1.6384]
[1740077144273,0.72897,2743.0,2742.8,2.36741]
[1740077145371,1.31436,2743.1,2742.8,2.3674]
[1740077145667,0.72897,2743.0,2742.8,2.3674]
[1740077145871,0.72899,2742.9,2742.8,1.6384]
[1740077146171,0.5854,2743.1,2742.8,2.411]
[1740077146370,0.72899,2742.9,2742.8,2.411]
[1740077148874,0.72899,2742.9,2742.8,3.14002]
[1740077149174,0.72899,2742.9,2742.8,2.411]
[1740077149765,0.72899,2742.9,2742.8,3.14002]
[1740077150474,0.72899,2742.9,2742.8,2.411]
[1740077150770,0.5515,2743.2,2742.8,2.411]
[1740077150975,0.72898,2743.0,2742.9,1.1695]
[1740077151370,0.72896,2743.0,2742.9,1.89848]
[1740077151570,0.72895,2743.1,2743.0,0.72895]
[1740077152069,0.72895,2743.1,2743.0,1.30905]
[1740077152270,0.72894,2743.1,2743.0,1.30906]
[1740077152469,0.72894,2743.1,2743.0,0.5801]
[1740077153776,0.72894,2743.1,2743.0,1.30906]
[1740077154475,0.72894,2743.1,2743.0,0.5801]
[1740077155073,0.72894,2743.1,2743.0,1.30906]
[1740077156380,0.5515,2743.2,2742.9,1.1695]
[1740077156576,0.72899,2742.9,2742.8,3.14]
[1740077156972,0.72897,2743.0,2742.9,0.72896]
[1740077157778,0.5515,2743.2,2742.8,2.411]
[1740077157975,0.72899,2742.9,2742.8,2.411]
[1740077158375,0.72899,2742.9,2742.8,3.14002]
[1740077158574,0.72899,2742.9,2742.8,2.411]
[1740077158774,0.5519,2743.0,2742.7,0.5573]
[1740077158976,0.7291,2742.5,2742.4,3.2078]
[1740077159176,0.7291,2742.5,2742.4,5.6188]
[1740077160584,0.7291,2742.5,2742.4,6.34792]
[1740077160980,0.7291,2742.5,2742.4,2.411]
[1740077161283,0.72912,2742.4,2742.3,0.00547915]
[1740077161488,1.85812,2742.4,2742.3,0.00547915]
[1740077162378,5.06592,2742.4,2742.3,0.00547915]
[1740077168195,5.06592,2742.4,2741.5,3.2078]
[1740077168196,0.72934,2741.6,2741.5,3.93716]
[1740077168384,0.72934,2741.6,2741.5,6.34816]
[1740077168689,0.72934,2741.6,2741.5,5.6188]
[1740077169084,0.72934,2741.6,2741.5,3.2078]
[1740077169280,0.72939,2741.4,2741.3,40.80546896]
[1740077170494,0.72939,2741.4,2741.3,0.00546896]
[1740077173387,1.28729,2741.4,2741.3,0.00546896]
[1740077173589,0.72952,2740.9,2740.8,3.2078]
[1740077174096,0.7296,2740.6,2740.5,0.5943]
[1740077174392,3.2078,2740.8,2740.4,0.0497344]
[1740077174595,0.72963,2740.5,2740.4,0.0497344]
[1740077175097,3.2078,2740.8,2740.4,0.0497344]
[1740077175294,0.7296,2740.7,2740.5,0.72961]
[1740077175593,3.2078,2740.8,2740.4,0.0497344]
[1740077175791,4.3082,2741.1,2740.5,3.2078]
[1740077175991,3.2078,2741.4,2740.8,3.2078]
[1740077176190,1.1,2741.6,2741.1,3.2078]
[1740077176595,0.72943,2741.3,2741.1,3.93727]
[1740077177094,1.1,2741.6,2740.9,4.1494]
[1740077177289,0.7295,2741.0,2740.9,4.1494]
[1740077177986,1.82341,2741.5,2740.9,44.9494]
[1740077178183,1.1,2741.6,2740.9,44.9494]
[1740077178487,1.1,2741.6,2741.2,0.72943]
[1740077178488,0.7294,2741.4,2741.2,0.72943]
[1740077179095,1.1,2741.6,2740.9,44.9494]
[1740077179290,0.72947,2741.1,2741.0,2.411]
[1740077179699,1.82349,2741.4,2741.0,2.411]
[1740077180000,0.7295,2741.0,2740.9,40.8]
[1740077180199,5.62655,2741.3,2740.6,2.9941]
[1740077180494,0.72958,2740.7,2740.6,2.9941]
[1740077180696,0.72958,2740.7,2740.6,43.7941]
[1740077181086,1.1524,2740.9,2740.6,43.7941]
[1740077181488,3.2078,2741.6,2740.6,43.7941]
[1740077181685,1.1524,2741.5,2740.9,3.2078]
[1740077181890,0.72943,2741.3,2741.1,0.72946]
[1740077182093,0.72945,2741.2,2741.0,4.31668]
[1740077182293,0.72945,2741.2,2741.1,0.5388]
[1740077184592,0.72943,2741.3,2741.2,0.72944]
[1740077184794,0.72941,2741.4,2741.3,0.7294]
[1740077184993,0.72939,2741.4,2741.1,0.5388]
[1740077185303,0.585,2741.7,2741.2,3.2078]
[1740077185599,0.72933,2741.7,2741.5,0.72935]
[1740077185800,0.00544519,2741.8,2741.6,1.1335]
[1740077186000,0.72931,2741.7,2741.6,1.1335]
[1740077186189,0.72931,2741.7,2741.6,1.6822]
[1740077186395,0.73473519,2741.8,2741.6,1.6822]
[1740077186590,0.00544519,2741.8,2741.7,0.72931]
[1740077190497,0.72931,2741.7,2741.6,4.0932]
[1740077191402,0.72931,2741.7,2741.6,2.9958]
[1740077191603,0.00544519,2741.8,2741.6,2.9958]
[1740077191900,0.72931,2741.7,2741.6,2.9958]
[1740077192301,0.72931,2741.7,2741.6,0.5848]
[1740077192510,1.82870519,2741.8,2741.3,0.545]
[1740077192701,0.72942,2741.3,2741.2,3.2078]
[1740077193306,0.7295,2741.0,2740.9,3.2078]
[1740077194005,1.31556,2741.2,2740.9,3.93732]
[1740077194199,0.5789,2741.3,2740.9,3.2078]
[1740077194593,0.72944,2741.2,2740.9,3.9373]
[1740077194794,0.5789,2741.3,2741.0,0.72949]
[1740077195004,0.72943,2741.3,2741.1,0.72945]
[1740077195701,0.5861,2741.5,2740.9,3.2078]
[1740077195702,0.5861,2741.5,2741.2,0.5646]
[1740077195899,0.72942,2741.3,2741.2,0.5646]
[1740077196306,0.72939,2741.5,2741.3,0.72939]
[1740077196599,0.0012339,2741.6,2741.3,1.1404]
[1740077196799,0.72939,2741.4,2741.3,1.1404]
[1740077197305,0.72939,2741.4,2741.3,41.9404]
[1740077198100,0.72939,2741.4,2741.3,40.8]
[1740077198406,0.0012339,2741.6,2741.0,0.5448]
[1740077198407,0.72947,2741.1,2741.0,0.5448]
[1740077198706,0.72947,2741.1,2741.0,41.3448]
[1740077199399,0.5552,2741.3,2741.0,42.07429]
[1740077199598,0.72947,2741.1,2741.0,41.3448]
[1740077201103,0.72947,2741.1,2741.0,40.8]
[1740077201407,0.7295,2741.0,2740.9,5.6188]
[1740077201605,0.7295,2741.0,2740.9,3.2078]
[1740077202306,0.72958,2740.7,2740.6,3.2078]
[1740077203101,0.7295,2741.0,2740.5,3.70843]
[1740077203102,0.7295,2741.0,2740.5,0.5678]
[1740077203303,0.72963,2740.5,2740.4,2.411]
[1740077203801,0.72963,2740.5,2740.4,3.14065]
[1740077204008,0.72962,2740.6,2740.4,3.14065]
[1740077204406,0.72963,2740.6,2740.4,3.14065]
[1740077204903,0.72963,2740.6,2740.4,43.94065]
[1740077205097,0.72963,2740.5,2740.4,43.211]
[1740077205301,0.72963,2740.5,2740.4,43.94065]
[1740077205504,0.5909,2740.7,2740.4,43.94065]
[1740077205707,0.72962,2740.6,2740.4,43.94065]
[1740077206209,0.5909,2740.7,2740.4,43.211]
[1740077206408,0.72963,2740.5,2740.4,43.211]
[1740077206906,0.72962,2740.6,2740.4,43.94064]
[1740077207201,0.5909,2740.7,2740.4,43.94064]
[1740077207514,0.72963,2740.5,2740.4,43.211]
[1740077207901,0.72963,2740.5,2740.4,41.52965]
[1740077209207,0.5909,2740.7,2740.4,40.8]
[1740077209410,0.72963,2740.5,2740.4,41.52964]
[1740077209805,0.72963,2740.5,2740.4,40.8]
[1740077210704,0.72963,2740.5,2740.4,41.52965]
[1740077210905,0.72963,2740.5,2740.4,40.8]
[1740077211602,0.7296,2740.6,2740.4,40.8]
[1740077211810,0.72963,2740.5,2740.4,41.52963]
[1740077213203,0.5931,2740.8,2740.5,0.72962]
[1740077213404,0.72957,2740.8,2740.7,0.72958]
[1740077213713,1.82376,2741.0,2740.6,0.72959]
[1740077213714,0.72959,2740.7,2740.6,0.72959]
[1740077214215,0.7296,2740.6,2740.5,40.8]
[1740077214714,0.7296,2740.6,2740.5,41.52963]
[1740077215112,1.82382,2740.9,2740.5,40.8]
[1740077215311,0.7296,2740.7,2740.6,0.72959]
[1740077216315,1.82382,2740.9,2740.5,40.8]
[1740077216518,0.7296,2740.6,2740.5,41.52961]
[1740077218114,0.7296,2740.7,2740.6,0.72959]
[1740077218823,0.72963,2740.5,2740.4,0.72964]
[1740077221617,0.72961,2740.6,2740.5,0.7296]
[1740077221816,3.2078,2740.8,2740.3,44.58636896]
[1740077222017,0.72965,2740.5,2740.4,0.72964]
[1740077222918,0.72965,2740.4,2740.3,45.31602896]
[1740077223420,0.72965,2740.4,2740.1,0.87977]
[1740077223421,0.72971,2740.2,2740.1,0.87977]
[1740077224014,1.1212,2740.3,2740.1,0.87977]
[1740077224216,0.72971,2740.2,2740.1,0.87977]
[1740077226924,3.93751,2740.2,2740.1,0.83781092]
[1740077238832,3.64903,2739.9,2738.3,0.5663]
[1740077239129,3.2078,2739.0,2738.3,0.5663]
[1740077239331,0.73016,2738.6,2738.4,0.73018]
[1740077239531,0.73016,2738.6,2738.3,0.5663]
[1740077239736,0.73016,2738.6,2738.4,0.73019]
[1740077239934,0.73016,2738.5,2738.4,0.73019]
[1740077240433,0.00546896,2738.7,2738.4,0.73019]
[1740077240434,0.73015,2738.6,2738.4,0.73019]
[1740077240830,0.73015,2738.6,2738.4,3.2078]
[1740077241037,0.00546896,2738.7,2738.4,3.2078]
[1740077241231,0.73014,2738.6,2738.4,3.93798]
[1740077242036,0.00546896,2738.7,2738.4,3.2078]
[1740077242337,0.73016,2738.6,2738.4,3.2078]
[1740077242634,0.00546896,2738.7,2738.4,3.93798]
[1740077242939,0.73558896,2738.7,2738.4,3.93798]
[1740077243237,0.73014,2738.6,2738.4,3.2078]
[1740077243633,0.73014,2738.6,2738.4,3.93798]
[1740077244232,0.73016,2738.5,2738.4,3.2078]
[1740077244438,0.00546896,2738.7,2738.3,0.5663]
[1740077244439,0.73019,2738.4,2738.3,0.5663]
[1740077247339,0.73019,2738.4,2738.3,41.3663]
[1740077248235,0.73019,2738.4,2738.3,0.5663]
[1740077248439,0.73021,2738.3,2738.2,0.56426896]
[1740077248636,0.73021,2738.3,2738.2,0.00546896]
[1740077252640,0.73021,2738.3,2738.2,1.14286896]
[1740077258535,0.73021,2738.3,2738.2,0.54576896]
[1740077258843,0.73021,2738.3,2738.2,0.00546896]
[1740077259345,1.28021,2738.3,2738.2,0.00546896]
[1740077261843,1.28021,2738.3,2737.6,3.2078]
[1740077261844,0.55,2738.3,2737.6,3.2078]
[1740077262052,0.73045,2737.4,2737.3,1.7401]
[1740077262348,0.73045,2737.4,2737.3,2.47056]
[1740077262548,0.73045,2737.4,2737.3,1.7401]
[1740077262847,0.73045,2737.4,2737.3,2.47058]
[1740077263038,0.73045,2737.4,2737.3,1.7401]
[1740077266456,0.73045,2737.4,2737.3,4.9479]
[1740077266749,0.73045,2737.4,2737.3,1.7401]
[1740077267151,5.58092,2737.8,2737.3,1.7401]
[1740077267350,0.73045,2737.4,2737.3,1.7401]
[1740077267553,0.73045,2737.4,2737.3,2.47058]
[1740077267854,0.73045,2737.4,2737.3,1.7401]
[1740077268055,0.73045,2737.4,2737.3,2.47058]
[1740077268451,0.73045,2737.4,2737.3,1.7401]
[1740077268960,0.73045,2737.4,2737.3,2.47058]
[1740077269255,0.73045,2737.4,2737.3,1.7401]
[1740077271550,0.73049,2737.3,2737.2,0.73051]
[1740077271750,1.82603,2737.6,2737.1,1.74007915]
[1740077271946,0.73049,2737.3,2737.2,0.73048]
[1740077272152,3.2078,2737.3,2736.4,3.2078]
[1740077272457,0.73064,2736.7,2736.6,0.5788]
[1740077272956,3.2078,2736.9,2736.4,3.2078]
[1740077273156,3.2078,2736.9,2735.6,3.2078]
[1740077273157,0.7309,2735.8,2735.6,3.2078]
[1740077273358,0.73084,2736.0,2735.7,0.73089]
[1740077273552,5.6508,2736.3,2735.8,1.164]
[1740077273753,5.6508,2736.3,2736.0,0.73081]
[1740077273754,6.38156,2736.3,2736.0,0.73081]
[1740077273953,0.73072,2736.4,2736.1,0.73079]
[1740077274154,0.5943,2736.5,2736.2,0.5747]
[1740077274355,3.2078,2736.7,2736.3,0.5547]
[1740077274652,3.2078,2736.7,2736.4,0.5788]
[1740077274960,0.73069,2736.5,2736.4,0.5788]
[1740077275147,3.2078,2736.7,2735.7,43.245]
[1740077275352,0.73081,2736.1,2735.8,2.44177]
[1740077275560,0.5681,2736.4,2735.8,1.7109]
[1740077275957,0.5681,2736.4,2735.9,3.2078]
[1740077276254,0.73073,2736.4,2736.1,0.7308]
[1740077276451,0.73073,2736.4,2735.9,3.2078]
[1740077276452,0.73072,2736.5,2735.9,3.2078]
[1740077276755,5.402,2736.6,2735.9,3.2078]
[1740077276951,0.73069,2736.5,2736.2,3.2078]
[1740077277156,0.73069,2736.5,2736.2,3.93855]
[1740077277357,0.73069,2736.5,2736.2,3.2078]
[1740077277654,0.73075,2736.3,2736.2,3.2078]
[1740077278361,2.949,2736.6,2736.2,3.2078]
[1740077278553,3.2078,2736.7,2736.2,3.2078]
[1740077278960,0.73075,2736.4,2736.2,3.2078]
[1740077279160,3.2078,2736.7,2736.3,0.5392]
[1740077279365,0.73072,2736.4,2736.3,0.5392]
[1740077280061,3.2078,2736.7,2736.2,3.2078]
[1740077280258,0.73075,2736.3,2736.2,3.2078]
[1740077280462,0.73073,2736.4,2736.2,3.93857]
[1740077280763,0.73073,2736.4,2736.2,3.93856]
[1740077281456,3.2078,2736.7,2736.2,3.2078]
[1740077281665,3.2078,2736.7,2736.3,1.1546]
[1740077281957,3.2078,2736.7,2736.4,0.563]
[1740077282162,0.00547915,2736.9,2736.4,0.563]
[1740077282462,0.00547915,2736.9,2736.8,3.93841]
[1740077282960,0.00547915,2736.9,2736.8,45.27941]
[1740077283160,0.00547915,2736.9,2736.8,45.84051]
[1740077287166,0.00547915,2736.9,2736.8,45.1099]
[1740077287367,0.73606915,2736.9,2736.8,1.1021]
[1740077287559,0.73606915,2736.9,2736.8,0.5611]
[1740077288467,0.00547915,2736.9,2736.8,1.29171]
[1740077289059,0.73063,2736.8,2736.4,3.2078]
[1740077289265,0.00547915,2736.9,2736.7,0.73064]
[1740077289563,0.00547915,2736.9,2736.4,3.2078]
[1740077289763,0.00547915,2736.9,2736.8,0.73061]
[1740077290667,0.00547915,2736.9,2736.8,4.93511]
[1740077291366,0.73043,2737.5,2737.3,0.73046]
[1740077291567,0.73045,2737.4,2737.3,0.73048]
[1740077292768,0.73045,2737.4,2737.2,3.2078]
[1740077292968,0.73045,2737.4,2737.3,0.73048]
[1740077293860,0.59237915,2737.6,2737.4,0.73045]
[1740077293861,0.73044,2737.5,2737.4,0.73045]
[1740077294266,0.73044,2737.5,2737.3,1.6967]
[1740077294467,0.73044,2737.5,2737.3,2.42716]
[1740077294670,0.59237915,2737.6,2737.3,2.42716]
[1740077294877,0.73045,2737.4,2737.3,1.6967]
[1740077295071,0.73045,2737.4,2737.3,2.42718]
[1740077295573,0.73589915,2737.6,2737.3,1.6967]
[1740077295873,0.00547915,2737.6,2737.3,1.6967]
[1740077296067,0.00547915,2737.6,2737.4,0.73045]
[1740077296068,0.73044,2737.5,2737.4,0.73045]
[1740077305877,0.73045,2737.4,2737.3,2.42715]
[1740077306289,0.73045,2737.5,2737.4,0.73043]
[1740077310090,0.73588915,2737.6,2737.5,0.73043]
[1740077310300,0.73587915,2737.6,2737.5,0.73043]
[1740077311093,0.00547915,2737.6,2737.5,0.73043]
[1740077311293,0.73587915,2737.6,2737.5,0.73043]
[1740077311790,0.00547915,2737.6,2737.5,0.73043]
[1740077312390,0.00547915,2737.6,2737.5,3.93823]
[1740077321402,0.73587915,2737.6,2737.5,3.93823]
[1740077321701,0.73045,2737.4,2737.3,3.0257]
[1740077321890,0.73045,2737.4,2737.3,3.75618]
[1740077322090,0.73045,2737.4,2737.3,1.30518]
[1740077323097,0.73045,2737.4,2737.3,0.5747]
[1740077324498,0.73045,2737.4,2737.3,1.30518]
[1740077325392,0.73045,2737.4,2737.3,0.5747]
[1740077326406,0.73045,2737.4,2737.3,1.30518]
[1740077328103,0.73045,2737.4,2737.3,0.5747]
[1740077328505,0.73045,2737.4,2737.3,1.30518]
[1740077328802,3.5022,2737.5,2737.2,3.2078]
[1740077329007,0.73051,2737.2,2737.1,0.00547915]
[1740077329497,1.29761,2737.2,2737.1,0.00547915]
[1740077330207,0.5671,2737.2,2736.3,3.2078]
[1740077330395,1.82641,2737.0,2736.3,3.2078]
[1740077330600,0.7307,2736.5,2736.4,41.5307]
[1740077330805,0.7307,2736.5,2736.4,0.7307]
[1740077330999,0.7307,2736.5,2736.3,3.2078]
[1740077331000,0.5509,2736.8,2736.3,3.2078]
[1740077331196,0.73072,2736.4,2736.3,3.2078]
[1740077332806,0.73071,2736.5,2736.3,3.93853]
[1740077333107,0.5671,2736.7,2736.3,3.2078]
[1740077333410,0.73072,2736.4,2736.3,3.2078]
[1740077333606,0.58,2736.6,2736.3,3.2078]
[1740077333811,3.7587,2736.8,2736.6,0.73066]
[1740077334011,3.7587,2736.8,2736.5,0.73069]
[1740077334012,0.73066,2736.7,2736.5,0.73069]
[1740077334200,4.48933,2736.8,2736.4,1.7123]
[1740077334504,2.949,2737.0,2736.9,0.73059]
[1740077334908,6.2328,2737.2,2736.6,3.2078]
[1740077335097,3.7878,2737.2,2736.9,0.73058]
[1740077335301,0.73056,2737.1,2736.9,0.73058]
[1740077335709,3.7878,2737.2,2736.6,3.2078]
[1740077336007,0.7306,2736.9,2736.7,0.73063]
[1740077336315,0.73064,2736.7,2736.6,3.2078]
[1740077336608,0.73063,2736.8,2736.6,3.93845]
[1740077337009,3.7878,2737.2,2736.6,3.2078]
[1740077337210,0.73064,2736.7,2736.6,3.2078]
[1740077337508,0.73066,2736.7,2736.5,0.73069]
[1740077337909,0.73066,2736.7,2736.4,4.1553]
[1740077338110,0.73066,2736.7,2736.5,0.73068]
[1740077338708,0.5907,2737.0,2736.4,4.1553]
[1740077338709,0.73069,2736.5,2736.4,1.7123]
[1740077339108,1.29768,2736.6,2736.4,2.44301]
[1740077339412,0.567,2736.6,2736.4,2.44301]
[1740077339610,0.73069,2736.5,2736.4,2.44301]
[1740077339804,0.73069,2736.5,2736.4,1.7123]
[1740077340009,0.73069,2736.5,2736.4,0.545]
[1740077340415,0.73069,2736.5,2736.4,1.27572]
[1740077340608,0.73069,2736.5,2736.4,0.545]
[1740077341513,0.73074,2736.4,2736.2,41.53445354]
[1740077341712,0.567,2736.6,2736.2,41.34229354]
[1740077341908,0.73072,2736.4,2736.3,3.2078]
[1740077342108,0.73072,2736.4,2736.2,42.07304354]
[1740077342701,0.7307,2736.5,2736.2,41.34229354]
[1740077342907,1.29768,2736.6,2736.3,3.2078]
[1740077343114,0.7307,2736.5,2736.4,0.73071]
[1740077343316,0.7307,2736.5,2736.3,3.2078]
[1740077343503,2.949,2736.7,2736.4,0.73071]
[1740077343708,0.73069,2736.6,2736.4,0.73071]
[1740077343910,0.73075,2736.3,2736.2,40.80369354]
[1740077344108,0.73091,2735.7,2735.6,4.3404]
[1740077344404,0.73091,2735.7,2735.6,0.5386]
[1740077345819,0.73094,2735.6,2735.5,0.594]
[1740077346321,0.73099,2735.4,2735.3,3.2078]
[1740077346816,3.2078,2735.7,2735.0,3.2078]
[1740077347016,0.5715,2735.3,2735.0,3.2078]
[1740077347310,3.2078,2735.7,2735.1,40.8]
[1740077347610,0.73089,2735.8,2735.3,3.2078]
[1740077347816,0.73092,2735.7,2735.4,1.89467]
[1740077348112,0.73095,2735.6,2735.4,1.89469]
[1740077348415,0.73095,2735.6,2735.4,1.89618832]
[1740077348612,0.00547915,2735.9,2735.4,1.89616832]
[1740077348914,0.73094,2735.6,2735.4,1.89616832]
[1740077349512,0.73094,2735.6,2735.4,1.16519832]
[1740077349711,0.73096,2735.5,2735.4,0.59679832]
[1740077349909,0.73096,2735.5,2735.4,0.00149832]
[1740077350917,0.5551,2735.8,2735.4,0.73246832]
[1740077351105,0.00547915,2735.9,2735.4,0.00149832]
[1740077351403,3.2078,2735.6,2734.6,3.2078]
[1740077351609,3.2078,2735.6,2734.3,3.2078]
[1740077351610,0.73124,2734.5,2734.3,3.2078]
[1740077351813,0.73126,2734.4,2734.3,3.2078]
[1740077352016,0.73131,2734.2,2734.1,40.8]
[1740077352217,0.7313,2734.3,2734.1,40.8]
[1740077352411,0.00547915,2734.4,2734.1,40.8]
[1740077352612,0.00547915,2734.4,2734.3,3.93908]
[1740077352809,0.00547915,2734.4,2734.3,3.2078]
[1740077353210,0.73673915,2734.4,2734.3,3.2078]
[1740077354117,0.00547915,2734.4,2734.3,3.93908]